bitfinex/quotes_BTCUSD_20250617
["timestamp","ask_amount","ask_price","bid_price","bid_amount"]
[1750179708255,1.40157467,103670.0,103660.0,0.30014336]
[1750179708707,0.98372963,103670.0,103660.0,0.30014336]
[1750179708927,1.40157467,103670.0,103660.0,0.30014336]
[1750179709146,1.43071533,103670.0,103660.0,0.30014336]
[1750179709368,1.64525618,103670.0,103660.0,0.30014336]
[1750179709587,1.68407751,103670.0,103660.0,0.30014336]
[1750179709803,1.72197172,103670.0,103660.0,0.30014336]
[1750179710245,1.2830826,103670.0,103660.0,0.30014336]
[1750179710492,1.28308276,103670.0,103660.0,0.30014336]
[1750179710940,1.7009278,103670.0,103660.0,0.30014336]
[1750179711162,1.700979,103670.0,103660.0,0.30014336]
[1750179711402,1.72202308,103670.0,103660.0,0.30014336]
[1750179711599,1.30417804,103670.0,103660.0,0.30014336]
[1750179711822,1.72202308,103670.0,103660.0,0.30014336]
[1750179712064,1.67252969,103670.0,103660.0,0.30014336]
[1750179712718,1.63294278,103670.0,103660.0,0.30014336]
[1750179713235,1.67250267,103670.0,103660.0,0.30014336]
[1750179713456,1.67518267,103670.0,103660.0,0.30014336]
[1750179713678,1.67514316,103670.0,103660.0,0.30314336]
[1750179713905,1.70660231,103670.0,103660.0,0.30314336]
[1750179714120,1.76783071,103670.0,103660.0,0.30314336]
[1750179714358,1.76304514,103670.0,103660.0,0.30314336]
[1750179714575,1.76304514,103670.0,103660.0,0.30014336]
[1750179714802,0.4122521,103650.0,103640.0,0.003]
[1750179715024,0.4122521,103650.0,103640.0,0.00306138]
[1750179715025,1.39317223,103650.0,103640.0,0.00306138]
[1750179715285,1.40178931,103650.0,103640.0,0.00306138]
[1750179715703,0.98024427,103650.0,103640.0,0.00306138]
[1750179715898,0.53604427,103650.0,103640.0,0.03736138]
[1750179716115,0.75717496,103650.0,103640.0,0.06896138]
[1750179716327,0.50761496,103650.0,103640.0,0.06896138]
[1750179716566,1.15726455,103650.0,103640.0,0.06896138]
[1750179717011,1.18569386,103650.0,103640.0,0.00606138]
[1750179717223,1.20349834,103650.0,103640.0,0.00606138]
[1750179717429,1.20349865,103650.0,103640.0,0.00706138]
[1750179718094,0.93613386,103650.0,103640.0,0.00706138]
[1750179718556,1.18541386,103650.0,103640.0,0.00706138]
[1750179718785,0.76756882,103650.0,103640.0,0.07116138]
[1750179719022,1.49698455,103650.0,103640.0,0.07116138]
[1750179719259,1.24770455,103650.0,103640.0,0.07116138]
[1750179719472,1.07901951,103650.0,103640.0,0.07116138]
[1750179719896,1.98706455,103650.0,103640.0,0.07116138]
[1750179720332,1.98706455,103650.0,103640.0,0.00706138]
[1750179720567,2.01549386,103650.0,103640.0,0.00706138]
[1750179720800,2.00631534,103650.0,103640.0,0.00706138]
[1750179721039,2.04951347,103650.0,103640.0,0.00706138]
[1750179721254,1.0761295,103650.0,103640.0,0.00706138]
[1750179721492,1.49397454,103650.0,103640.0,0.00706138]
[1750179721715,1.49397454,103650.0,103640.0,0.00406138]
[1750179721716,1.74521454,103650.0,103640.0,0.00406138]
[1750179721928,1.59521454,103650.0,103640.0,0.00406138]
[1750179722172,0.9254295,103650.0,103640.0,0.00406138]
[1750179722390,1.5707236,103650.0,103640.0,0.00406138]
[1750179722606,1.5707236,103650.0,103640.0,0.00306138]
[1750179722839,1.32440261,103650.0,103640.0,0.00306138]
[1750179723054,0.9644078,103650.0,103640.0,0.00306138]
[1750179723276,0.90755757,103650.0,103640.0,0.00306138]
[1750179723514,0.91264552,103650.0,103640.0,0.00306138]
[1750179723726,1.52165056,103650.0,103640.0,0.03626138]
[1750179723951,1.31269862,103650.0,103640.0,0.03626138]
[1750179724174,1.53224448,103650.0,103640.0,0.03626138]
[1750179724420,1.11039944,103650.0,103640.0,0.03626138]
[1750179724635,1.5460367,103650.0,103640.0,0.03626138]
[1750179724873,1.53745311,103650.0,103640.0,0.00306138]
[1750179725086,1.11960807,103650.0,103640.0,0.00306138]
[1750179725519,1.11960819,103650.0,103640.0,0.00306138]
[1750179725747,1.480603,103650.0,103640.0,0.00306138]
[1750179725963,1.970803,103650.0,103640.0,0.00306138]
[1750179726176,1.55295796,103650.0,103640.0,0.00306138]
[1750179726395,2.02773698,103650.0,103640.0,0.00306138]
[1750179726610,1.970803,103650.0,103640.0,0.00306138]
[1750179726854,2.02774162,103650.0,103640.0,0.00306138]
[1750179727415,1.65705658,103650.0,103640.0,0.03306138]
[1750179727658,1.89190424,103650.0,103640.0,0.03306138]
[1750179727878,1.18703064,103650.0,103640.0,0.06546138]
[1750179728107,0.67573473,103650.0,103640.0,0.14238076]
[1750179728338,0.3472583,103650.0,103640.0,0.14238076]
[1750179728564,0.32451821,103650.0,103640.0,0.14238076]
[1750179729030,0.32351821,103650.0,103640.0,0.14238076]
[1750179729467,0.32351821,103650.0,103640.0,0.16530076]
[1750179729927,0.41975997,103650.0,103640.0,0.08738138]
[1750179730152,0.75975997,103650.0,103640.0,0.08738138]
[1750179730366,1.03550006,103650.0,103640.0,0.08738138]
[1750179730589,1.03550006,103650.0,103640.0,0.08438138]
[1750179730801,1.03450006,103650.0,103640.0,0.08438138]
[1750179731043,1.03750006,103650.0,103640.0,0.08438138]
[1750179731714,1.03450006,103650.0,103640.0,0.08438138]
[1750179731918,1.46108772,103650.0,103640.0,0.08438138]
[1750179732140,1.04324268,103650.0,103640.0,0.09038138]
[1750179732385,0.79124268,103650.0,103640.0,0.09038138]
[1750179732618,0.86202083,103650.0,103640.0,0.09038138]
[1750179733072,0.76850259,103650.0,103640.0,0.09038138]
[1750179733303,0.95842259,103650.0,103640.0,0.09038138]
[1750179733532,0.9811531,103650.0,103640.0,0.09038138]
[1750179733759,0.95842259,103650.0,103640.0,0.09038138]
[1750179734022,0.98116416,103650.0,103640.0,0.09038138]
[1750179734245,0.95850259,103650.0,103640.0,0.09038138]
[1750179735238,0.32341821,103650.0,103640.0,0.7012021]
[1750179735474,0.52282597,103650.0,103640.0,0.5851458]
[1750179735712,0.51317859,103650.0,103640.0,0.09038138]
[1750179736193,0.51317859,103650.0,103640.0,0.08738138]
[1750179736394,0.63216825,103650.0,103640.0,0.08738138]
[1750179736608,0.62229146,103650.0,103640.0,0.08738138]
[1750179736850,0.64105234,103650.0,103640.0,0.08738138]
[1750179737047,0.64105234,103650.0,103640.0,0.08438138]
[1750179737262,0.62230444,103650.0,103640.0,0.08438138]
[1750179738134,0.67630268,103650.0,103640.0,0.08438138]
[1750179738357,0.86570268,103650.0,103640.0,0.08438138]
[1750179739873,0.63423815,103650.0,103640.0,0.08438138]
[1750179740101,0.29779521,103650.0,103640.0,0.08438138]
[1750179740324,0.29651685,103650.0,103640.0,0.70485088]
[1750179740552,0.29651685,103650.0,103640.0,0.6952021]
[1750179740777,0.29651685,103650.0,103640.0,0.29665453]
[1750179740778,0.48535685,103650.0,103640.0,0.29665453]
[1750179741205,0.47624363,103650.0,103640.0,0.08438138]
[1750179741467,0.46659597,103650.0,103640.0,0.08438138]
[1750179742585,0.46559597,103650.0,103640.0,0.08438138]
[1750179743016,0.46159597,103650.0,103640.0,0.08438138]
[1750179743433,0.89983773,103650.0,103640.0,0.08438138]
[1750179743656,1.32443546,103650.0,103640.0,0.08438138]
[1750179743859,1.32443546,103650.0,103640.0,0.02198138]
[1750179744074,1.33043546,103650.0,103640.0,0.02198138]
[1750179744309,1.3531849,103650.0,103640.0,0.02198138]
[1750179745146,0.93533986,103650.0,103640.0,0.02198138]
[1750179745354,1.3531849,103650.0,103640.0,0.02198138]
[1750179745790,0.22198459,103610.0,103600.0,0.07752117]
[1750179746004,0.42007616,103610.0,103600.0,0.29476434]
[1750179746213,0.42007598,103610.0,103600.0,0.29952747]
[1750179746414,0.42007598,103610.0,103600.0,0.72226151]
[1750179746629,0.42007673,103610.0,103600.0,0.72226151]
[1750179746838,0.42007673,103610.0,103600.0,0.31406842]
[1750179747050,0.42012433,103610.0,103600.0,0.73191346]
[1750179747296,0.42012433,103610.0,103600.0,0.74157151]
[1750179747498,0.42012433,103610.0,103600.0,0.70295725]
[1750179747499,0.40082203,103610.0,103600.0,0.70295725]
[1750179747706,0.40282184,103610.0,103600.0,0.71260957]
[1750179747906,0.41247341,103610.0,103600.0,0.71260957]
[1750179748158,0.41247341,103610.0,103600.0,0.72226161]
[1750179748327,0.20013852,103610.0,103600.0,0.82530122]
[1750179748542,0.41247258,103610.0,103600.0,0.82530122]
[1750179748757,0.42212415,103610.0,103600.0,0.62553608]
[1750179748959,0.42212415,103610.0,103600.0,0.68833608]
[1750179749174,0.40282212,103610.0,103600.0,0.49528589]
[1750179749370,0.39317073,103610.0,103600.0,0.08709335]
[1750179749781,0.39317073,103610.0,103600.0,0.28014354]
[1750179749782,0.38351916,103610.0,103600.0,0.28014354]
[1750179749992,0.38351916,103610.0,103600.0,0.7076409]
[1750179750214,0.20910916,103610.0,103600.0,0.72694488]
[1750179750437,0.43109414,103610.0,103600.0,0.72694488]
[1750179750646,0.23806248,103610.0,103600.0,0.72694488]
[1750179750856,4.76e-05,103610.0,103600.0,0.72694488]
[1750179751076,4.76e-05,103610.0,103600.0,1.3371809]
[1750179751293,0.0060476,103610.0,103600.0,1.3371809]
[1750179751513,0.0060476,103610.0,103600.0,1.5240209]
[1750179751741,0.21161258,103650.0,103630.0,0.20262686]
[1750179751967,0.22126043,103650.0,103640.0,0.48084504]
[1750179752186,0.20260199,103660.0,103650.0,0.062]
[1750179752624,0.39076199,103660.0,103650.0,0.062]
[1750179752840,0.3994993,103660.0,103650.0,0.062]
[1750179753060,0.7394993,103660.0,103650.0,0.062]
[1750179753272,0.73956244,103660.0,103650.0,0.062]
[1750179753482,0.73956244,103660.0,103630.0,0.02419056]
[1750179753483,0.22192091,103640.0,103630.0,0.02419056]
[1750179753694,0.40031278,103640.0,103630.0,0.02419056]
[1750179753911,0.38101568,103640.0,103620.0,0.6397766]
[1750179754136,0.40031278,103640.0,103630.0,0.07214971]
[1750179754394,0.21698588,103640.0,103630.0,0.26514401]
[1750179754616,0.21698588,103640.0,103630.0,0.0625]
[1750179754617,0.40996156,103640.0,103630.0,0.0625]
[1750179755277,0.40031315,103640.0,103630.0,0.0625]
[1750179755500,0.40131315,103640.0,103630.0,0.0625]
[1750179756210,0.21227315,103640.0,103630.0,0.2554943]
[1750179756455,0.0192971,103640.0,103630.0,0.71193651]
[1750179756716,0.39983278,103640.0,103630.0,0.26514392]
[1750179758569,0.39983393,103620.0,103610.0,0.0649]
[1750179759013,0.02895585,103600.0,103590.0,0.22202728]
[1750179759238,0.21235474,103600.0,103590.0,0.22534616]
[1750179759451,0.20270251,103600.0,103590.0,0.03227734]
[1750179759671,0.20270251,103600.0,103590.0,0.06527734]
[1750179760315,0.20770251,103600.0,103590.0,0.06527734]
[1750179760787,0.21654103,103600.0,103590.0,0.06527734]
[1750179761000,0.21654103,103600.0,103590.0,0.00047734]
[1750179761215,0.31278279,103600.0,103590.0,0.00047734]
[1750179761640,0.31578279,103600.0,103590.0,0.00047734]
[1750179762112,0.21954103,103600.0,103590.0,0.48212238]
[1750179762332,0.39578251,103600.0,103590.0,0.48212238]
[1750179762547,0.39078251,103600.0,103590.0,0.06527734]
[1750179762766,0.20270251,103600.0,103590.0,0.06527734]
[1750179762982,0.39070251,103600.0,103590.0,0.06927734]
[1750179763665,0.39070251,103600.0,103590.0,0.06527734]
[1750179763881,0.39270251,103600.0,103590.0,0.06527734]
[1750179764113,0.002,103600.0,103590.0,0.69073205]
[1750179764331,0.02130361,103600.0,103590.0,0.71869171]
[1750179764540,0.0532602,103600.0,103590.0,0.71869171]
[1750179764812,0.0532602,103600.0,103590.0,0.49666323]
[1750179764813,0.22700678,103600.0,103590.0,0.49666323]
[1750179765249,0.23665928,103600.0,103590.0,0.70903865]
[1750179765473,0.21735437,103600.0,103590.0,0.7186919]
[1750179765711,0.22700594,103600.0,103590.0,0.31049992]
[1750179765934,0.22700585,103600.0,103590.0,0.73799774]
[1750179766154,0.01165185,103600.0,103590.0,0.73799774]
[1750179766373,0.40931904,103610.0,103600.0,0.25555019]
[1750179766593,0.40931904,103610.0,103600.0,0.48034504]
[1750179766815,0.39966793,103610.0,103600.0,0.0625]
[1750179767496,0.39974793,103610.0,103600.0,0.0625]
[1750179767931,0.40856146,103610.0,103600.0,0.0625]
[1750179768143,0.39974793,103610.0,103600.0,0.0625]
[1750179768599,0.39109654,103610.0,103600.0,0.0625]
[1750179769040,0.20369608,103610.0,103600.0,0.71689276]
[1750179769259,0.001,103610.0,103600.0,0.72654461]
[1750179769478,0.02030203,103610.0,103600.0,0.72654461]
[1750179769724,0.02030203,103610.0,103600.0,0.72654479]
[1750179769974,0.001,103610.0,103600.0,0.91893577]
[1750179770199,0.001,103610.0,103600.0,1.52386081]
[1750179771092,0.001,103610.0,103600.0,1.86386081]
[1750179771360,0.22192034,103640.0,103630.0,0.28962286]
[1750179771588,0.02894466,103640.0,103630.0,0.71711705]
[1750179771815,0.01929616,103640.0,103630.0,0.72676611]
[1750179772052,0.19293845,103660.0,103650.0,0.25665706]
[1750179772290,0.12000654,103670.0,103660.0,0.28557809]
[1750179772514,0.12000654,103670.0,103660.0,0.7276109]
[1750179772740,0.12014971,103670.0,103660.0,0.7276109]
[1750179772975,0.12014971,103670.0,103660.0,0.82385266]
[1750179773208,0.12014971,103670.0,103660.0,1.01037266]
[1750179773436,0.12014971,103670.0,103660.0,1.01437266]
[1750179773905,0.12979505,103670.0,103660.0,0.59640762]
[1750179774113,0.12014971,103670.0,103660.0,1.12380565]
[1750179774570,0.12014971,103670.0,103660.0,0.93740565]
[1750179774798,0.12014971,103670.0,103660.0,0.59632765]
[1750179774799,0.3343605,103670.0,103660.0,0.59632765]
[1750179775037,0.33436096,103670.0,103660.0,0.08224085]
[1750179775302,0.12214971,103670.0,103660.0,0.71796398]
[1750179775513,0.33636041,103670.0,103660.0,0.72761034]
[1750179775730,0.12514971,103670.0,103660.0,0.8238521]
[1750179775942,0.12514971,103670.0,103660.0,0.92000132]
[1750179776162,0.00414317,103670.0,103660.0,0.92000132]
[1750179776589,0.00514317,103670.0,103660.0,0.92000132]
[1750179777038,0.00114317,103670.0,103660.0,0.92000132]
[1750179777297,0.00314317,103670.0,103660.0,0.94910062]
[1750179777909,0.00214317,103670.0,103660.0,1.28910062]
[1750179778160,0.22187016,103700.0,103690.0,0.28286742]
[1750179778370,0.22187025,103700.0,103690.0,0.70071246]
[1750179778589,0.21222715,103700.0,103690.0,0.70071246]
[1750179778803,0.00964245,103700.0,103690.0,0.7173996]
[1750179779062,0.00964236,103700.0,103690.0,0.81364136]
[1750179779289,0.23143468,103700.0,103690.0,0.78671028]
[1750179779512,0.23143468,103700.0,103690.0,0.79635422]
[1750179779740,0.23143468,103700.0,103690.0,0.80599807]
[1750179780039,0.72841273,103710.0,103700.0,0.27625015]
[1750179780343,0.72841273,103710.0,103700.0,0.0641]
[1750179780344,0.5620396,103710.0,103700.0,0.0641]
[1750179780584,0.5523978,103710.0,103700.0,0.0641]
[1750179780837,0.54250704,103700.0,103690.0,0.002]
[1750179781054,1.11879384,103700.0,103690.0,0.002]
[1750179781567,0.19293845,103660.0,103640.0,0.0311]
[1750179781814,0.21225136,103650.0,103640.0,0.37211472]
[1750179782017,0.22189884,103650.0,103640.0,0.37211472]
[1750179782240,0.22189884,103650.0,103640.0,0.15984176]
[1750179782241,0.23154725,103650.0,103640.0,0.15984176]
[1750179782479,0.2122321,103660.0,103640.0,0.73600789]
[1750179782763,0.23152389,103660.0,103650.0,0.21225239]
[1750179783008,0.22187725,103660.0,103650.0,0.81483838]
[1750179783271,0.19544534,103670.0,103660.0,0.29027286]
[1750179783493,0.22185659,103670.0,103660.0,0.07804085]
[1750179783718,0.72825812,103680.0,103670.0,0.0635]
[1750179783943,0.54257812,103680.0,103670.0,0.0635]
[1750179784166,0.56186796,103680.0,103670.0,0.0635]
[1750179784386,0.55222318,103680.0,103670.0,0.0635]
[1750179784601,0.54257831,103680.0,103670.0,0.0635]
[1750179784828,0.73802309,103680.0,103670.0,0.26606583]
[1750179785016,0.22186721,103680.0,103670.0,0.28060668]
[1750179785317,0.21222197,103680.0,103670.0,0.29989837]
[1750179785539,0.22185837,103690.0,103680.0,0.27918695]
[1750179785752,0.22185828,103690.0,103680.0,0.77098716]
[1750179786009,0.22185893,103690.0,103680.0,0.07664085]
[1750179786227,0.21221527,103690.0,103680.0,0.07664085]
[1750179786658,0.21221527,103690.0,103680.0,0.2888321]
[1750179786962,0.21221527,103690.0,103680.0,0.07664085]
[1750179787413,0.21221527,103690.0,103680.0,0.08628591]
[1750179787637,0.37978403,103700.0,103690.0,0.26702666]
[1750179787638,0.20350676,103700.0,103690.0,0.26702666]
[1750179787885,0.57243514,103700.0,103690.0,0.0645]
[1750179788118,0.54350704,103700.0,103690.0,0.0645]
[1750179788806,0.21217051,103690.0,103680.0,0.26394085]
[1750179789051,0.21217051,103690.0,103680.0,0.07834085]
[1750179789270,0.21217051,103690.0,103680.0,0.28088695]
[1750179789500,0.21217051,103690.0,103680.0,0.28088714]
[1750179789736,0.21217051,103690.0,103680.0,0.07834085]
[1750179789995,0.21217051,103690.0,103680.0,0.2663461]
[1750179790230,0.21217051,103690.0,103680.0,0.29443033]
[1750179790491,0.21217051,103690.0,103680.0,0.0638]
[1750179790702,0.20252666,103690.0,103680.0,0.0638]
[1750179790925,0.01929356,103660.0,103640.0,0.09238506]
[1750179791145,0.22189855,103650.0,103640.0,0.69442587]
[1750179791392,0.23154585,103650.0,103640.0,0.31830611]
[1750179791632,0.02894131,103650.0,103640.0,0.57701443]
[1750179791871,0.20258509,103660.0,103650.0,0.27575248]
[1750179792110,0.22187846,103660.0,103650.0,0.0635]
[1750179792339,0.22187846,103660.0,103650.0,0.27575257]
[1750179792580,0.22187846,103660.0,103650.0,0.17419007]
[1750179792808,0.22187846,103660.0,103650.0,0.26368085]
[1750179793346,0.22187846,103660.0,103650.0,0.46628576]
[1750179793588,0.22187846,103660.0,103650.0,0.46632576]
[1750179793799,0.22187846,103660.0,103650.0,0.48562118]
[1750179794036,0.22187846,103660.0,103650.0,0.36951792]
[1750179794385,0.22287836,103660.0,103650.0,0.26352085]
[1750179794577,0.22287836,103660.0,103650.0,0.08108085]
[1750179794825,0.21323191,103660.0,103650.0,0.00304]
[1750179795083,1.03538753,103660.0,103650.0,0.00304]
[1750179795346,1.31694929,103660.0,103650.0,0.00304]
[1750179795990,0.83479367,103660.0,103650.0,0.00304]
[1750179796216,1.31594929,103660.0,103650.0,4e-05]
[1750179796437,1.38244929,103660.0,103650.0,4e-05]
[1750179796885,0.64847367,103660.0,103650.0,4e-05]
[1750179797108,0.83347367,103660.0,103650.0,4e-05]
[1750179797338,1.31562929,103660.0,103650.0,4e-05]
[1750179797557,0.70675367,103660.0,103650.0,4e-05]
[1750179797777,0.64847367,103660.0,103650.0,4e-05]
[1750179797985,0.89283367,103660.0,103650.0,4e-05]
[1750179798214,0.89283367,103660.0,103650.0,0.00404]
[1750179798448,1.43838929,103660.0,103650.0,0.00404]
[1750179798667,0.71187367,103660.0,103650.0,0.00404]
[1750179798897,0.92269367,103660.0,103650.0,0.00604]
[1750179799125,1.43764929,103660.0,103650.0,0.00604]
[1750179800059,1.65535313,103660.0,103650.0,0.00604]
[1750179800305,1.7280191,103660.0,103650.0,0.00604]
[1750179800524,1.73465682,103660.0,103650.0,0.00604]
[1750179800789,1.76313325,103660.0,103650.0,0.00604]
[1750179800991,0.20262427,103640.0,103630.0,4e-05]
[1750179801211,1.38470549,103640.0,103630.0,4e-05]
[1750179801433,1.55737146,103640.0,103630.0,4e-05]
[1750179801677,1.53966762,103640.0,103630.0,4e-05]
[1750179801881,0.21235455,103600.0,103590.0,0.11791876]
[1750179802573,0.21235455,103600.0,103590.0,0.05391876]
[1750179803233,0.00965372,103580.0,103570.0,1.37319438]
[1750179803449,0.20274118,103580.0,103570.0,1.48445433]
[1750179803666,0.22204204,103590.0,103580.0,0.07764085]
[1750179803923,0.23169538,103590.0,103580.0,0.07764085]
[1750179804193,0.20270251,103600.0,103580.0,0.33283234]
[1750179804430,0.22200742,103600.0,103590.0,0.064]
[1750179804684,0.19304824,103610.0,103600.0,0.19305019]
[1750179804931,0.22200184,103610.0,103600.0,0.064]
[1750179805171,0.21235092,103610.0,103600.0,0.064]
[1750179805929,0.21235092,103610.0,103600.0,0.004]
[1750179806139,0.21235092,103610.0,103600.0,0.03]
[1750179806565,0.21435092,103610.0,103600.0,0.0624]
[1750179807060,0.21435092,103610.0,103600.0,0.69902181]
[1750179807061,0.22400165,103610.0,103600.0,0.69902181]
[1750179807266,0.23365313,103610.0,103600.0,0.69902181]
[1750179807502,0.23365313,103610.0,103600.0,0.69906199]
[1750179807503,0.21435036,103610.0,103600.0,0.69906199]
[1750179807735,0.002,103610.0,103600.0,1.41266239]
[1750179808220,0.004,103610.0,103600.0,1.41266239]
[1750179808640,0.002,103610.0,103600.0,1.41266239]
[1750179808867,0.0096498,103620.0,103610.0,0.28312389]
[1750179808868,0.20266273,103620.0,103610.0,0.28312389]
[1750179809089,0.21231357,103620.0,103610.0,0.08044085]
[1750179809310,0.20266339,103620.0,103610.0,0.08044085]
[1750179809996,0.20266311,103620.0,103610.0,0.28312389]
[1750179810234,0.22196327,103620.0,103610.0,0.78498624]
[1750179810446,0.22196327,103620.0,103610.0,0.77533504]
[1750179810669,0.21331375,103620.0,103610.0,0.08044085]
[1750179811352,0.21331375,103620.0,103610.0,0.0659]
[1750179811574,0.20268295,103610.0,103600.0,0.07788085]
[1750179811793,0.21233424,103610.0,103600.0,0.37682521]
[1750179812010,0.21233424,103610.0,103600.0,0.17412261]
[1750179812263,0.20268295,103610.0,103600.0,0.06334]
[1750179813667,0.20268295,103610.0,103600.0,0.06434]
[1750179813890,0.20268267,103610.0,103600.0,0.26704269]
[1750179814117,0.23163561,103610.0,103600.0,0.29083595]
[1750179814351,0.23163561,103610.0,103600.0,0.30148808]
[1750179814573,0.23163561,103610.0,103600.0,0.29948808]
[1750179814574,0.24228709,103610.0,103600.0,0.29948808]
[1750179814786,0.23263561,103610.0,103600.0,0.29948808]
[1750179815021,0.23263561,103610.0,103600.0,0.28983595]
[1750179815234,0.22298525,103610.0,103600.0,0.08713335]
[1750179815485,0.2133333,103610.0,103600.0,0.30914004]
[1750179815734,0.001,103610.0,103600.0,0.9692885]
[1750179816198,0.001,103610.0,103600.0,1.38620788]
[1750179816680,0.19305781,103660.0,103640.0,0.25556054]
[1750179816912,0.21223467,103660.0,103650.0,0.0626]
[1750179817126,0.21237768,103660.0,103650.0,0.0626]
[1750179817366,0.55237768,103660.0,103650.0,0.0626]
[1750179817586,0.21237768,103660.0,103650.0,0.0626]
[1750179818041,0.55237768,103660.0,103650.0,0.0626]
[1750179818728,0.55437768,103660.0,103650.0,0.0626]
[1750179818958,0.54473067,103660.0,103650.0,0.73811692]
[1750179819185,0.02143526,103660.0,103650.0,0.86795658]
[1750179819421,0.01178909,103660.0,103650.0,0.78160011]
[1750179819658,0.01178909,103660.0,103650.0,0.58032201]
[1750179819659,0.01178928,103660.0,103650.0,0.58032201]
[1750179819889,0.02343545,103660.0,103650.0,0.58032201]
[1750179820114,0.22422045,103660.0,103650.0,0.57067481]
[1750179820345,0.23386727,103660.0,103650.0,0.36633967]
[1750179820578,0.23386727,103660.0,103650.0,0.0301]
[1750179820579,0.21457483,103660.0,103650.0,0.0301]
[1750179821068,0.23154659,103650.0,103640.0,0.07614085]
[1750179821308,0.23154743,103650.0,103640.0,0.17238261]
[1750179821525,0.21225136,103650.0,103640.0,0.25457568]
[1750179821735,0.22189884,103650.0,103640.0,0.2931695]
[1750179821956,0.0192943,103650.0,103640.0,0.77572936]
[1750179822179,0.02894159,103650.0,103640.0,0.79027021]
[1750179822369,0.01929421,103650.0,103640.0,0.87980492]
[1750179822586,0.21423107,103660.0,103650.0,0.30064071]
[1750179822809,0.22387771,103660.0,103650.0,0.77355319]
[1750179823031,0.01164617,103660.0,103650.0,0.31028791]
[1750179823257,0.03093889,103660.0,103650.0,0.31028791]
[1750179823486,0.21229433,103670.0,103660.0,0.25383845]
[1750179823711,0.22193967,103670.0,103660.0,0.26348527]
[1750179823942,0.20256499,103670.0,103660.0,0.76533841]
[1750179824171,0.22190621,103680.0,103670.0,0.27311163]
[1750179824395,0.23155043,103680.0,103670.0,0.28275734]
[1750179824619,0.22190556,103680.0,103670.0,0.27311163]
[1750179824908,0.23155043,103680.0,103670.0,0.28275733]
[1750179825133,0.20256564,103670.0,103660.0,0.0623]
[1750179825365,0.20256564,103670.0,103640.0,0.19296775]
[1750179825366,0.20260416,103650.0,103640.0,0.21226485]
[1750179825591,0.22189958,103650.0,103640.0,0.00014301]
[1750179825812,0.2122522,103650.0,103640.0,0.00014301]
[1750179826700,0.2121522,103650.0,103640.0,0.00014301]
[1750179827603,0.2121522,103650.0,103640.0,0.00314301]
[1750179827814,0.2140522,103650.0,103640.0,0.00314301]
[1750179828031,0.2140522,103650.0,103640.0,0.00014301]
[1750179828264,0.3990522,103650.0,103640.0,0.00014301]
[1750179828477,0.4000522,103650.0,103640.0,0.00014301]
[1750179829146,0.4000522,103650.0,103640.0,0.00018301]
[1750179829147,0.39040472,103650.0,103640.0,0.00018301]
[1750179829587,0.39040472,103650.0,103640.0,0.03148301]
[1750179829807,0.39040472,103650.0,103640.0,0.06448301]
[1750179830043,0.39040472,103650.0,103640.0,0.29671472]
[1750179830044,0.22469995,103650.0,103640.0,0.29671472]
[1750179830274,0.21505201,103650.0,103640.0,0.30636341]
[1750179830497,0.21525145,103650.0,103640.0,0.31601182]
[1750179830711,0.22489902,103650.0,103640.0,0.32566013]
[1750179831167,0.22489902,103650.0,103640.0,0.00018301]
[1750179831168,0.55425229,103650.0,103640.0,0.00018301]
[1750179831457,1.19028391,103650.0,103640.0,0.00018301]
[1750179831688,1.25408391,103650.0,103640.0,0.00118301]
[1750179832366,1.25257391,103650.0,103640.0,0.00018301]
[1750179832594,1.27526866,103650.0,103640.0,0.00518301]
[1750179833024,1.27527186,103650.0,103640.0,0.00518301]
[1750179833488,1.27527186,103650.0,103640.0,0.01018301]
[1750179833933,1.42527186,103650.0,103640.0,0.00518301]
[1750179834153,1.42527186,103650.0,103640.0,0.01718301]
[1750179834370,1.45374829,103650.0,103640.0,0.01718301]
[1750179834579,1.49605355,103650.0,103640.0,0.00518301]
[1750179834802,1.47150338,103650.0,103640.0,0.01518301]
[1750179835245,1.44302695,103650.0,103640.0,0.01518301]
[1750179835467,1.47150338,103650.0,103640.0,0.01518301]
[1750179835903,0.98894352,103650.0,103640.0,0.01518301]
[1750179836143,1.40833855,103650.0,103640.0,0.01518301]
[1750179836359,1.44058346,103650.0,103640.0,0.01518301]
[1750179836615,0.97577966,103650.0,103640.0,0.01518301]
[1750179836846,1.45833952,103650.0,103640.0,0.01518301]
[1750179838428,1.48776042,103650.0,103640.0,0.01518301]
[1750179838668,1.50230127,103650.0,103640.0,0.01518301]
[1750179838885,1.55230127,103650.0,103640.0,0.01518301]
[1750179839524,1.57264042,103650.0,103640.0,0.01518301]
[1750179839743,1.57261981,103650.0,103640.0,0.01518301]
[1750179839969,1.47261981,103650.0,103640.0,0.01518301]
[1750179840189,1.57261981,103650.0,103640.0,0.01518301]
[1750179840401,1.52261981,103650.0,103640.0,0.01518301]
[1750179840613,1.57261981,103650.0,103640.0,0.01518301]
[1750179841556,1.28001981,103650.0,103640.0,0.01518301]
[1750179841806,1.52261981,103650.0,103640.0,0.01518301]
[1750179842019,0.79745806,103650.0,103640.0,0.01518301]
[1750179842281,1.72649792,103650.0,103640.0,0.01518301]
[1750179842507,1.48393792,103650.0,103640.0,0.01518301]
[1750179842722,1.42777792,103650.0,103640.0,0.01518301]
[1750179842941,1.35240436,103650.0,103640.0,0.01518301]
[1750179843161,1.59500436,103650.0,103640.0,0.01518301]
[1750179843410,0.6659245,103650.0,103640.0,0.01518301]
[1750179843636,0.30849405,103650.0,103640.0,0.07808301]
[1750179843883,0.39717229,103650.0,103640.0,0.07808301]
[1750179844591,0.39717229,103650.0,103640.0,0.06808301]
[1750179844822,0.73717229,103650.0,103640.0,0.06808301]
[1750179845032,0.73717229,103650.0,103640.0,0.07108301]
[1750179845251,0.72752472,103650.0,103640.0,0.06308301]
[1750179846183,1.21008458,103650.0,103640.0,0.03218301]
[1750179846421,1.21008458,103650.0,103640.0,0.03418301]
[1750179846644,1.30632634,103650.0,103640.0,0.00318301]
[1750179846881,0.82376648,103650.0,103640.0,0.00318301]
[1750179847099,0.82376648,103650.0,103640.0,0.06608301]
[1750179847322,1.30632634,103650.0,103640.0,0.00318301]
[1750179847534,0.82376648,103650.0,103640.0,0.00318301]
[1750179848216,1.30632634,103650.0,103640.0,0.00318301]
[1750179848429,1.12140634,103650.0,103640.0,0.00318301]
[1750179848647,0.88136648,103650.0,103640.0,0.00318301]
[1750179849102,0.88136648,103650.0,103640.0,0.00118301]
[1750179849328,1.36392634,103650.0,103640.0,0.00718301]
[1750179849788,0.63884648,103650.0,103640.0,0.07208301]
[1750179850020,0.54260472,103650.0,103640.0,0.07908301]
[1750179850248,0.20260472,103650.0,103640.0,0.07908301]
[1750179850473,0.38748472,103650.0,103640.0,0.07908301]
[1750179850951,0.19295706,103650.0,103640.0,0.27205869]
[1750179851175,0.02894178,103650.0,103640.0,0.29500392]
[1750179851391,0.02894178,103650.0,103640.0,0.3891384]
[1750179851392,0.22189865,103650.0,103640.0,0.3891384]
[1750179851612,0.22189865,103650.0,103640.0,0.41143475]
[1750179851833,0.0096471,103650.0,103640.0,0.41143475]